bitfinex-derivatives/quotes_BNBF0:USTF0_20250521
["timestamp","ask_amount","ask_price","bid_price","bid_amount"]
[1747805067592,1.50396411,662.3,662.0,0.59878297]
[1747805067792,1.50396411,662.3,662.01,0.59878297]
[1747805067993,1.50396411,662.29,661.95,1.64]
[1747805068194,1.50396411,662.29,661.96,0.59871215]
[1747805068395,1.50396411,662.29,661.97,0.59871215]
[1747805068589,1.50396411,662.29,661.98,0.59871215]
[1747805068788,1.50396411,662.29,661.99,0.59887627]
[1747805068988,1.50396411,662.29,662.0,0.59887627]
[1747805069291,1.50396411,662.29,662.01,0.59887627]
[1747805069487,1.50396411,662.29,661.95,1.64]
[1747805069686,1.50396411,662.29,661.96,0.5988881]
[1747805069891,1.50396411,662.29,661.95,1.64]
[1747805069892,1.50396411,662.29,661.97,0.5988881]
[1747805070089,1.50396411,662.29,661.98,0.5988881]
[1747805070296,1.50396411,662.36,661.99,0.5988881]
[1747805070494,1.50396411,662.36,662.0,0.5988881]
[1747805070691,1.50396411,662.36,662.01,0.5988881]
[1747805070892,1.50396411,662.36,661.96,1.132]
[1747805071088,1.50396411,662.36,661.97,0.59891838]
[1747805071389,1.50396411,662.36,661.98,0.59891838]
[1747805071589,1.50396411,662.36,661.99,0.59891838]
[1747805071792,1.50396411,662.36,662.0,0.59891838]
[1747805071990,1.50396411,662.36,662.01,0.59891838]
[1747805072191,1.50396411,662.36,661.96,1.132]
[1747805072494,1.50396411,662.36,661.97,0.5990069]
[1747805072690,1.50396411,662.36,661.98,0.5990069]
[1747805072893,1.50396411,662.36,661.99,0.5990069]
[1747805073096,1.50396411,662.36,662.0,0.5990069]
[1747805073290,1.50396411,662.36,662.01,0.5990069]
[1747805073491,1.50396411,662.33,662.02,0.59899904]
[1747805073692,1.50396411,662.33,661.96,1.132]
[1747805073894,1.50396411,662.33,661.97,0.59901941]
[1747805074094,1.50396411,662.33,661.98,0.59901941]
[1747805074295,1.50396411,662.33,661.99,0.59901941]
[1747805074497,1.50396411,662.33,662.0,0.59901941]
[1747805074697,1.50396411,662.33,662.01,0.59901941]
[1747805074897,1.50396411,662.33,662.02,0.59901941]
[1747805075096,1.50396411,662.33,661.96,1.132]
[1747805075296,1.50396411,662.33,661.97,0.59905434]
[1747805075497,1.50396411,662.33,661.98,0.59905434]
[1747805075694,1.50396411,662.33,661.99,0.59905434]
[1747805075898,1.50396411,662.33,662.0,0.59905434]
[1747805076201,1.50396411,662.33,662.01,0.59905434]
[1747805076404,1.50396411,662.35,662.02,0.59905434]
[1747805076597,1.50396411,662.35,662.03,0.59905434]
[1747805076797,1.50396411,662.35,662.04,0.59905434]
[1747805077094,1.50396411,662.35,662.05,0.59905434]
[1747805077300,1.50396411,662.35,661.96,1.132]
[1747805077599,1.50396411,662.35,661.97,0.59913493]
[1747805077801,1.50396411,662.35,661.96,1.132]
[1747805078703,1.50396411,662.28,661.96,1.132]
[1747805081205,1.12907335,662.07,661.96,1.132]
[1747805086506,1.12907335,662.05,661.96,1.132]
[1747805087110,1.12907335,662.05,661.97,0.59937411]
[1747805087308,1.12907335,662.05,661.96,1.132]
[1747805087508,1.12907335,662.05,661.97,0.59937017]
[1747805087705,1.12907335,662.05,661.98,0.59937017]
[1747805087901,1.12907335,662.05,661.96,1.132]
[1747805088103,1.12907335,662.05,661.97,0.599371]
[1747805088308,1.12907335,662.05,661.98,0.599371]
[1747805088508,1.12907335,662.05,661.96,1.132]
[1747805088703,1.12907335,662.05,661.97,0.59943194]
[1747805088907,1.12907335,662.05,661.98,0.59943194]
[1747805089106,1.12907335,662.05,661.96,1.132]
[1747805089305,1.12907335,662.05,661.97,0.59948326]
[1747805089506,1.12907335,662.06,661.98,0.59948326]
[1747805089809,1.12907335,662.06,661.99,0.59955086]
[1747805090108,1.12907335,662.06,661.96,1.132]
[1747805090410,1.12907335,662.06,661.97,0.59955191]
[1747805090604,1.12907335,662.06,661.98,0.59955191]
[1747805090801,1.12907335,662.06,661.99,0.59955191]
[1747805091006,1.12907335,662.06,661.96,1.132]
[1747805091208,1.12907335,662.06,661.97,0.59961824]
[1747805091508,1.12907335,662.06,661.98,0.59961824]
[1747805091709,1.12907335,662.06,661.99,0.59961824]
[1747805091909,1.12907335,662.06,661.96,1.132]
[1747805092210,1.12907335,662.06,661.97,0.59962988]
[1747805092410,1.12907335,662.06,661.98,0.59962988]
[1747805092707,1.12907335,662.06,661.99,0.59962988]
[1747805092911,1.12907335,662.06,661.96,1.132]
[1747805093211,1.12907335,662.04,661.97,0.59961563]
[1747805093510,1.12907335,662.04,661.98,0.59961563]
[1747805093706,1.12907335,662.04,661.99,0.59961563]
[1747805093911,1.12907335,662.04,662.0,0.59961563]
[1747805094108,1.12907335,662.04,661.96,1.132]
[1747805094412,1.12907335,662.04,661.97,0.59961356]
[1747805094613,1.12907335,662.04,661.98,0.59963538]
[1747805094807,1.12907335,662.04,661.99,0.59963538]
[1747805095008,1.12907335,662.04,662.0,0.59963538]
[1747805095209,1.12907335,662.04,661.96,1.132]
[1747805095408,1.12907335,662.04,661.97,0.5996372]
[1747805095607,1.12907335,662.04,661.98,0.5996372]
[1747805095806,1.12907335,662.04,661.99,0.5996372]
[1747805096009,1.12907335,662.04,662.0,0.5996741]
[1747805096212,1.12907335,662.04,662.01,0.5996741]
[1747805096407,1.12907335,662.04,662.02,0.59967409]
[1747805096609,1.12907335,662.06,661.96,1.132]
[1747805096811,1.12907335,662.06,661.97,0.59976218]
[1747805097013,1.12907335,662.06,661.98,0.59976218]
[1747805097213,1.12907335,662.06,661.99,0.59976218]
[1747805097413,1.12907335,662.06,662.0,0.59976218]
[1747805097608,1.12907335,662.06,662.01,0.59976218]
[1747805097808,1.12907335,662.06,662.02,0.59976218]
[1747805098009,1.12907335,662.06,661.96,1.132]
[1747805098208,1.12907335,662.06,661.97,0.59988225]
[1747805098411,1.12907335,662.06,661.98,0.59988225]
[1747805098611,1.12907335,662.06,661.99,0.59988225]
[1747805098812,1.12907335,662.06,662.0,0.59988225]
[1747805099107,1.12907335,662.06,662.01,0.59988225]
[1747805099313,1.12907335,662.06,662.02,0.59988225]
[1747805099514,1.12907335,662.06,662.03,0.59988225]
[1747805099714,1.12907335,662.07,662.04,0.59988225]
[1747805099914,1.12907335,662.07,662.05,0.59988225]
[1747805100110,1.12907335,662.07,661.96,1.132]
[1747805100320,1.12907335,662.07,661.97,0.5999197]
[1747805100615,1.12907335,662.07,661.98,0.5999197]
[1747805100809,1.12907335,662.07,661.99,0.5999197]
[1747805101011,1.12907335,662.07,662.0,0.5999197]
[1747805101214,1.12907335,662.07,662.01,0.59991902]
[1747805101414,1.12907335,662.07,662.02,0.59991902]
[1747805101710,1.12907335,662.07,662.03,0.59991902]
[1747805101915,1.12907335,662.07,662.04,0.59991902]
[1747805102117,1.12907335,662.07,661.96,1.132]
[1747805102312,1.12907335,662.07,661.97,0.59992494]
[1747805102511,1.12907335,662.07,661.98,0.59992494]
[1747805102814,1.12907335,662.09,661.99,0.59992256]
[1747805103011,1.12907335,662.09,662.0,0.59992256]
[1747805103214,1.12907335,662.09,662.01,0.59992256]
[1747805103416,1.12907335,662.09,662.02,0.59992256]
[1747805103617,1.12907335,662.09,662.03,0.59992256]
[1747805103816,1.12907335,662.09,662.04,0.59992256]
[1747805104016,1.12907335,662.09,661.96,1.132]
[1747805104218,1.12907335,662.09,661.97,0.59992269]
[1747805104413,1.12907335,662.09,661.98,0.59992269]
[1747805104615,1.12907335,662.09,661.99,0.59992269]
[1747805104816,1.12907335,662.09,662.0,0.59992269]
[1747805105018,1.12907335,662.09,662.01,0.59992269]
[1747805105213,1.12907335,662.09,662.02,0.59992269]
[1747805105519,1.12907335,662.09,662.03,0.59992269]
[1747805105719,1.12907335,662.09,662.04,0.59992269]
[1747805105918,1.12907335,662.09,662.05,0.59992269]
[1747805106112,1.323,662.6,662.06,0.59992269]
[1747805106113,1.12907335,662.14,662.06,0.59992269]
[1747805106318,1.12907335,662.14,662.07,0.59992269]
[1747805106519,1.12907335,662.14,662.08,0.59992269]
[1747805106718,1.12907335,662.14,662.09,0.59992269]
[1747805106919,1.12907335,662.14,662.1,0.59992269]
[1747805107215,1.12907335,662.14,662.11,0.59992269]
[1747805107419,1.12907335,662.14,662.12,0.59992269]
[1747805107612,1.12907335,662.14,662.13,0.59992269]
[1747805107817,1.12907335,662.14,662.13,0.59953393]
[1747805108919,1.12907335,662.22,662.13,0.59953393]
[1747805109118,1.12907335,662.22,662.14,0.59953393]
[1747805109318,1.12907335,662.22,662.15,0.59953393]
[1747805109514,1.12907335,662.22,662.16,0.59909098]
[1747805109721,1.12907335,662.22,662.17,0.59909098]
[1747805110020,1.12907335,662.22,662.18,0.59909098]
[1747805110216,1.12907335,662.22,662.19,0.59909098]
[1747805110414,1.12907335,662.22,662.2,0.59909098]
[1747805110614,1.12907335,662.22,662.21,0.59909098]
[1747805111222,1.50396411,662.53,662.21,0.59849399]
[1747805111522,1.50396411,662.53,662.22,0.59849399]
[1747805111717,1.50396411,662.53,662.23,0.59849399]
[1747805111920,1.50396411,662.53,662.24,0.59849399]
[1747805112117,1.50396411,662.53,662.25,0.59849399]
[1747805112422,1.50396411,662.53,662.26,0.59849399]
[1747805112621,1.50396411,662.53,662.27,0.59849399]
[1747805112822,1.50396411,662.53,662.28,0.59786894]
[1747805113023,1.50396411,662.53,662.29,0.59787471]
[1747805113323,1.50396411,662.53,662.3,0.59787471]
[1747805113523,1.50396411,662.53,662.24,1.733]
[1747805113823,1.50396411,662.53,662.25,0.59765793]
[1747805114017,1.50396411,662.53,662.26,0.59765793]
[1747805114218,1.50396411,662.53,662.27,0.59765793]
[1747805114422,1.50396411,662.53,662.28,0.59765793]
[1747805114617,1.323,662.6,662.24,3.253]
[1747805114818,1.323,662.6,662.25,0.59745979]
[1747805115019,1.323,662.6,662.26,0.59745979]
[1747805115218,1.323,662.6,662.24,3.253]
[1747805115422,1.323,662.6,662.25,0.59745061]
[1747805115619,1.323,662.6,662.24,3.253]
[1747805115819,1.323,662.6,662.25,0.59715125]
[1747805116023,1.323,662.6,662.26,0.59713002]
[1747805116219,1.323,662.6,662.27,0.59713002]
[1747805116419,1.323,662.6,662.24,3.253]
[1747805116620,1.323,662.6,662.25,0.59694152]
[1747805116925,1.323,662.6,662.26,0.59694152]
[1747805117225,1.323,662.6,662.27,0.59694152]
[1747805117526,1.323,662.6,662.28,0.59694152]
[1747805117726,1.323,662.6,662.24,3.253]
[1747805117924,1.323,662.6,662.25,0.59626643]
[1747805118121,1.323,662.6,662.26,0.59624921]
[1747805118321,1.323,662.6,662.27,0.59624921]
[1747805118528,1.323,662.6,662.24,3.253]
[1747805118722,1.323,662.6,662.25,0.59616255]
[1747805118922,1.323,662.6,662.26,0.59616255]
[1747805119125,1.323,662.6,662.27,0.59616255]
[1747805119326,1.323,662.6,662.24,3.253]
[1747805119527,1.323,662.6,662.25,0.59612265]
[1747805119822,1.50396411,662.87,662.26,0.59596423]
[1747805120028,1.50396411,662.89,662.24,3.253]
[1747805120230,1.50396411,662.89,662.25,0.59596021]
[1747805120422,1.50396411,662.89,662.26,0.59596021]
[1747805120621,1.50396411,662.89,662.24,3.253]
[1747805120925,1.50396411,662.89,662.25,0.5959672]
[1747805121126,1.50396411,662.89,662.24,3.253]
[1747805121327,1.50396411,662.89,662.25,0.59599205]
[1747805121529,1.50396411,662.89,662.24,3.253]
[1747805121729,1.50396411,662.89,662.25,0.59589671]
[1747805121928,1.50396411,662.89,662.24,3.253]
[1747805122129,1.50396411,662.89,662.25,0.59588348]
[1747805122326,1.50396411,662.91,662.24,3.253]
[1747805122532,1.099,662.88,662.24,3.253]
[1747805127328,1.099,662.88,662.24,1.52]
[1747805130336,1.099,662.88,662.25,1.292]
[1747805132843,1.099,662.88,662.26,1.566]
[1747805137346,1.099,662.88,662.27,1.951]
[1747805139548,1.50396411,662.91,662.27,1.951]
[1747805141745,1.50396411,662.9,662.27,1.951]
[1747805142243,1.401,662.89,662.27,1.951]
[1747805144550,1.50396411,662.77,662.27,1.951]
[1747805147952,1.50396411,662.8,662.27,1.951]
[1747805150155,1.50396411,662.8,662.28,1.192]
[1747805150456,1.50396411,662.61,662.28,1.192]
[1747805153055,1.50396411,662.47,662.28,1.192]
[1747805155656,1.50396411,662.66,662.28,1.192]
[1747805157855,1.50396411,662.66,662.29,1.328]
[1747805161359,1.50396411,662.58,662.29,1.328]
[1747805165062,1.50396411,662.64,662.29,1.328]
[1747805165363,1.50396411,662.64,662.3,0.59828027]
[1747805165562,1.50396411,662.64,662.31,0.59846233]
[1747805165763,1.50396411,662.64,662.32,0.59846233]
[1747805165963,1.50396411,662.64,662.33,0.59846233]
[1747805166164,1.50396411,662.64,662.34,0.59846233]
[1747805166365,1.50396411,662.64,662.35,0.59846233]
[1747805166561,1.50396411,662.64,662.36,0.59857674]
[1747805166759,1.50396411,662.64,662.35,1.259]
[1747805166962,1.50396411,662.64,662.36,0.59856075]
[1747805167166,1.50396411,662.64,662.35,1.259]
[1747805167367,1.50396411,662.64,662.36,0.59855796]
[1747805167665,1.50396411,662.68,662.35,1.259]
[1747805167866,1.50396411,662.68,662.36,0.59853857]
[1747805168061,1.50396411,662.68,662.35,1.259]
[1747805168365,1.50396411,662.68,662.36,0.59853011]
[1747805168565,1.50396411,662.68,662.37,0.59862729]
[1747805168767,1.50396411,662.68,662.35,1.259]
[1747805168968,1.50396411,662.68,662.36,0.59857417]
[1747805169169,1.50396411,662.68,662.37,0.59857417]
[1747805169468,1.50396411,662.68,662.35,1.259]
[1747805169662,1.50396411,662.68,662.36,0.59857211]
[1747805169865,1.50396411,662.68,662.37,0.59857211]
[1747805170068,1.50396411,662.69,662.35,1.259]
[1747805170270,1.50396411,662.69,662.36,0.59837956]
[1747805170469,1.50396411,662.69,662.35,1.259]
[1747805170863,1.50396411,662.69,662.36,0.59724804]
[1747805171067,1.50396411,662.69,662.35,1.259]
[1747805171268,1.50396411,662.69,662.36,0.59698759]
[1747805171565,1.50396411,662.69,662.35,1.259]
[1747805171771,1.50396411,662.69,662.36,0.59723828]
[1747805171965,1.50396411,662.69,662.35,1.259]
[1747805172166,1.50396411,662.69,662.36,0.5972407]
[1747805172368,1.50396411,662.69,662.35,1.259]
[1747805172666,1.50396411,662.69,662.36,0.59726693]
[1747805172865,1.50396411,662.69,662.37,0.59726693]
[1747805173171,1.50396411,662.69,662.38,0.59733915]
[1747805173372,1.50396411,662.69,662.39,0.59733915]
[1747805173571,1.50396411,662.69,662.35,1.259]
[1747805173870,1.50396411,662.69,662.36,0.59733597]
[1747805174071,1.50396411,662.69,662.37,0.59733597]
[1747805174264,1.50396411,662.69,662.38,0.59734991]
[1747805174468,1.50396411,662.69,662.39,0.59734991]
[1747805174670,1.50396411,662.69,662.35,1.259]
[1747805174866,1.50396411,662.69,662.36,0.59734437]
[1747805175067,1.50396411,662.74,662.37,0.59734437]
[1747805175270,1.50396411,662.74,662.38,0.59734437]
[1747805175471,1.50396411,662.74,662.35,1.259]
[1747805175672,1.50396411,662.74,662.36,0.59727929]
[1747805175869,1.50396411,662.74,662.37,0.59727929]
[1747805176069,1.50396411,662.74,662.38,0.59727929]
[1747805176266,1.50396411,662.74,662.39,0.59727929]
[1747805176568,1.50396411,662.74,662.4,0.59727929]
[1747805176869,1.50396411,662.74,662.41,0.59727929]
[1747805177073,1.50396411,662.74,662.35,1.259]
[1747805177375,1.50396411,662.7,662.36,0.59776243]
[1747805177568,1.50396411,662.7,662.35,1.259]
[1747805177569,1.50396411,662.7,662.37,0.59776243]
[1747805177771,1.50396411,662.7,662.38,0.59776243]
[1747805177971,1.50396411,662.7,662.39,0.59776243]
[1747805178168,1.50396411,662.7,662.4,0.59783201]
[1747805178371,1.50396411,662.7,662.35,1.259]
[1747805178571,1.50396411,662.7,662.36,0.59781138]
[1747805178768,1.50396411,662.7,662.37,0.59781138]
[1747805178969,1.50396411,662.7,662.38,0.59781138]
[1747805179172,1.50396411,662.7,662.39,0.59781138]
[1747805179373,1.50396411,662.7,662.35,1.259]
[1747805179575,1.50396411,662.7,662.36,0.59783829]
[1747805179776,1.50396411,662.7,662.37,0.59783829]
[1747805180072,1.50396411,662.7,662.35,1.259]
[1747805180073,1.50396411,662.7,662.38,0.59783829]
[1747805180269,1.50396411,662.71,662.39,0.59783829]
[1747805180473,1.50396411,662.71,662.35,1.259]
[1747805180673,1.50396411,662.71,662.36,0.59779967]
[1747805180873,1.50396411,662.71,662.37,0.59779967]
[1747805181069,1.50396411,662.71,662.38,0.59784933]
[1747805181267,1.50396411,662.71,662.39,0.59784933]
[1747805181575,1.50396411,662.71,662.35,1.259]
[1747805181873,1.50396411,662.71,662.36,0.59776869]
[1747805182069,1.50396411,662.71,662.37,0.59776869]
[1747805182272,1.50396411,662.71,662.38,0.59776869]
[1747805182469,1.50396411,662.72,662.39,0.59776869]
[1747805182670,1.50396411,662.72,662.35,1.259]
[1747805182868,1.50396411,662.72,662.36,0.59772439]
[1747805183073,1.50396411,662.72,662.37,0.59772439]
[1747805183272,1.50396411,662.72,662.38,0.59772439]
[1747805183469,1.50396411,662.72,662.35,1.259]
[1747805183673,1.50396411,662.72,662.36,0.59774377]
[1747805183973,1.50396411,662.72,662.37,0.59774377]
[1747805184175,1.50396411,662.72,662.35,1.259]
[1747805184369,1.50396411,662.72,662.36,0.59774651]
[1747805184572,1.50396411,662.72,662.36,1.159]
[1747805185074,1.50396411,662.67,662.36,1.159]
[1747805187576,1.50396411,662.66,662.36,1.159]
[1747805188177,1.50396411,662.66,662.37,0.59774949]
[1747805188376,1.50396411,662.66,662.36,1.159]
[1747805188677,1.50396411,662.66,662.37,0.59765773]
[1747805188977,1.50396411,662.66,662.36,1.159]
[1747805188978,1.50396411,662.66,662.38,0.5969064]
[1747805189273,1.50396411,662.66,662.36,1.159]
[1747805189481,1.50396411,662.66,662.37,0.59685494]
[1747805189676,1.50396411,662.66,662.38,0.59685494]
[1747805189872,1.50396411,662.66,662.39,0.59685494]
[1747805190077,1.50396411,662.66,662.36,1.159]
[1747805190277,1.50396411,662.75,662.37,0.59684143]
[1747805190477,1.50396411,662.75,662.38,0.59684143]
[1747805190781,1.50396411,662.75,662.39,0.59684143]
[1747805190978,1.50396411,662.75,662.4,0.59684143]
[1747805191173,1.50396411,662.75,662.36,1.159]
[1747805191174,1.50396411,662.75,662.41,0.59684143]
[1747805191377,1.50396411,662.75,662.36,1.159]
[1747805191575,1.50396411,662.75,662.37,0.59675549]
[1747805191774,1.50396411,662.75,662.38,0.59675549]
[1747805191977,1.50396411,662.75,662.39,0.59675549]
[1747805192181,1.50396411,662.75,662.4,0.59675549]
[1747805192372,1.50396411,662.75,662.41,0.59675549]
[1747805192576,1.50396411,662.75,662.36,1.159]
[1747805192779,1.50396411,662.79,662.37,0.596718]
[1747805192978,1.50396411,662.79,662.38,0.596718]
[1747805193178,1.50396411,662.79,662.39,0.59666874]
[1747805193380,1.50396411,662.79,662.4,0.59666874]
[1747805193579,1.50396411,662.79,662.36,1.159]
[1747805193779,1.50396411,662.79,662.37,0.5966517]
[1747805193975,1.50396411,662.79,662.38,0.5966517]
[1747805194179,1.50396411,662.79,662.39,0.5966517]
[1747805194478,1.50396411,662.79,662.36,1.159]
[1747805194778,1.50396411,662.79,662.37,0.59676148]
[1747805194975,1.50396411,662.79,662.38,0.59676148]
[1747805195178,1.50396411,662.79,662.36,1.159]
[1747805195378,1.50396411,662.79,662.37,0.59684982]
[1747805195574,1.50396411,662.79,662.38,0.59688636]
[1747805195875,1.50396411,662.79,662.36,1.159]
[1747805196079,1.50396411,662.79,662.37,0.59687109]
[1747805196281,1.50396411,662.79,662.36,1.159]
[1747805197384,1.50396411,662.79,662.37,0.59698123]
[1747805197584,1.50396411,662.79,662.36,1.159]
[1747805197784,1.50396411,662.91,662.37,0.59696157]
[1747805197979,1.50396411,662.91,662.36,1.159]
[1747805198178,1.50396411,662.91,662.37,0.59698053]
[1747805198477,1.50396411,662.91,662.36,1.159]
[1747805198677,1.50396411,662.91,662.37,0.59706751]
[1747805198880,1.50396411,662.91,662.36,1.159]
[1747805199083,1.50396411,662.91,662.37,0.59707656]
[1747805199283,1.50396411,662.91,662.36,1.159]
[1747805199484,1.50396411,662.91,662.37,0.59704765]
[1747805199687,1.50396411,662.91,662.36,1.159]
[1747805199984,1.50396411,662.91,662.37,0.59700475]
[1747805200185,1.50396411,662.91,662.38,0.59700475]
[1747805200380,1.50396411,662.91,662.39,0.59700475]
[1747805200584,1.50396411,662.91,662.4,0.59696908]
[1747805200787,1.50396411,662.91,662.41,0.59691744]
[1747805200986,1.50396411,662.91,662.36,1.159]
[1747805201285,1.50396411,662.91,662.37,0.59690496]
[1747805201485,1.50396411,662.91,662.38,0.59690496]
[1747805201682,1.50396411,662.91,662.39,0.59690496]
[1747805201986,1.50396411,662.91,662.4,0.59690496]
[1747805202183,1.50396411,662.91,662.36,1.159]
[1747805202388,1.50396411,662.84,662.37,0.59634909]
[1747805202590,1.50396411,662.84,662.38,0.59634909]
[1747805202790,1.50396411,662.84,662.39,0.59634909]
[1747805202983,1.50396411,662.84,662.4,0.59630499]
[1747805203187,1.50396411,662.84,662.36,1.159]
[1747805203387,1.50396411,662.84,662.37,0.59630515]
[1747805203591,1.50396411,662.84,662.38,0.59630515]
[1747805203789,1.50396411,662.84,662.39,0.59630515]
[1747805203990,1.50396411,662.84,662.4,0.59630515]
[1747805204192,1.50396411,662.84,662.41,0.59626512]
[1747805204490,1.50396411,662.84,662.36,1.159]
[1747805204690,1.50396411,662.84,662.37,0.5962543]
[1747805204891,1.50396411,662.84,662.38,0.5962543]
[1747805205094,1.50396411,662.84,662.39,0.5962543]
[1747805205290,1.50396411,662.84,662.4,0.5962543]
[1747805205487,1.50396411,662.84,662.36,1.159]
[1747805205690,1.50396411,662.84,662.37,0.59624681]
[1747805205889,1.50396411,662.84,662.38,0.59624681]
[1747805206090,1.50396411,662.84,662.36,1.159]
[1747805206291,1.50396411,662.84,662.37,0.5962467]
[1747805206486,1.50396411,662.84,662.38,0.5962467]
[1747805206687,1.50396411,662.84,662.36,1.159]
[1747805206891,1.50396411,662.84,662.37,0.59623759]
[1747805207093,1.50396411,662.84,662.38,0.59623759]
[1747805207293,1.50396411,662.86,662.36,1.159]
[1747805207489,1.50396411,662.86,662.37,0.59618292]
[1747805207691,1.50396411,662.86,662.38,0.59618292]
[1747805207985,1.50396411,662.86,662.36,1.159]
[1747805209990,1.50396411,662.75,662.36,1.159]
[1747805210795,1.50396411,662.75,662.37,1.518]
[1747805212497,1.50396411,662.59,662.37,1.518]
[1747805215198,1.50396411,662.58,662.37,1.518]
[1747805217600,1.50396411,662.55,662.37,1.518]
[1747805220402,1.50396411,662.56,662.37,1.518]
[1747805220602,1.50396411,662.56,662.38,0.59874008]
[1747805220902,1.50396411,662.56,662.39,0.59871952]
[1747805221102,1.50396411,662.56,662.4,0.59871952]
[1747805221299,1.50396411,662.56,662.41,0.59871952]
[1747805221500,1.50396411,662.56,662.37,1.518]
[1747805221697,1.50396411,662.56,662.38,0.59870887]
[1747805221902,1.50396411,662.56,662.39,0.59870887]
[1747805222097,1.50396411,662.56,662.37,1.518]
[1747805222098,1.50396411,662.56,662.4,0.59878073]
[1747805222397,1.50396411,662.56,662.37,1.518]
[1747805222601,1.50396411,662.56,662.38,0.59878541]
[1747805222802,1.50396411,662.58,662.39,0.59878541]
[1747805223004,1.50396411,662.58,662.4,0.59878541]
[1747805223205,1.50396411,662.58,662.37,1.518]
[1747805223504,1.50396411,662.58,662.38,0.59894056]
[1747805223707,1.50396411,662.58,662.39,0.59894056]
[1747805223906,1.50396411,662.58,662.37,1.518]
[1747805224204,1.50396411,662.58,662.38,0.5989494]
[1747805224403,1.50396411,662.58,662.39,0.5989494]
[1747805224706,1.50396411,662.58,662.37,1.518]
[1747805224906,1.50396411,662.58,662.38,0.59898753]
[1747805225205,1.50396411,662.58,662.37,1.518]
[1747805225505,1.50396411,662.59,662.37,1.518]
[1747805226004,1.50396411,662.59,662.38,0.59898541]
[1747805226205,1.50396411,662.59,662.37,1.518]
[1747805228305,1.50396411,662.58,662.37,1.518]
[1747805229007,1.50396411,662.58,662.38,0.59902396]
[1747805229309,1.50396411,662.58,662.37,1.518]
[1747805229507,1.50396411,662.58,662.38,0.59903186]
[1747805229706,1.50396411,662.58,662.37,1.518]
[1747805229907,1.50396411,662.58,662.38,0.59909532]
[1747805230106,1.50396411,662.58,662.37,1.518]
[1747805230307,1.50396411,662.58,662.38,0.59909619]
[1747805230510,1.50396411,662.58,662.37,1.518]
[1747805230706,1.50396411,662.58,662.38,0.5991229]
[1747805231307,1.50396411,662.58,662.37,1.518]
[1747805232411,1.50396411,662.58,662.38,0.59915126]
[1747805232609,1.50396411,662.58,662.37,1.518]
[1747805233409,1.50396411,662.55,662.37,1.518]
[1747805234505,1.50396411,662.55,662.38,0.59946505]
[1747805234710,1.50396411,662.55,662.37,1.518]
[1747805236012,1.50396411,662.38,662.37,1.518]
[1747805238814,1.50396411,662.43,662.37,1.518]
[1747805241214,1.50396411,662.45,662.37,1.518]
[1747805243719,1.50396411,662.44,662.37,1.518]
[1747805248922,1.50396411,662.45,662.37,1.518]
[1747805251523,1.50396411,662.47,662.37,1.518]
[1747805254125,1.50396411,662.49,662.37,1.518]
[1747805257129,1.50396411,662.42,662.37,1.518]
[1747805259724,2.25501736,662.5,662.37,1.518]
[1747805262732,2.25501736,662.51,662.37,1.518]
[1747805265533,1.49790487,662.44,662.37,1.518]
[1747805267732,1.49790487,662.41,662.37,1.518]
[1747805268828,1.49790487,662.41,661.92,2.049]
[1747805270837,1.49790487,662.41,661.93,1.383]
[1747805271235,1.49790487,662.47,661.93,1.383]
[1747805272239,1.49790487,662.47,661.93,2.575]
[1747805273332,1.49790487,662.49,661.93,2.575]
[1747805275941,1.449,662.51,661.93,2.575]
[1747805279443,1.449,662.51,661.93,3.652]
[1747805281045,1.449,662.51,661.94,0.59650427]
[1747805281248,1.449,662.51,661.95,0.59648955]
[1747805281448,1.449,662.51,661.93,3.652]
[1747805281748,1.449,662.51,661.94,0.59653424]
[1747805281949,1.449,662.51,661.95,0.59653424]
[1747805282151,1.449,662.51,661.93,3.652]
[1747805282348,1.449,662.51,661.94,0.59665876]
[1747805282549,1.449,662.51,661.95,0.59665876]
[1747805282749,1.449,662.51,661.93,3.652]
[1747805282950,1.449,662.51,661.94,0.59645844]
[1747805283149,1.449,662.51,661.93,3.652]
[1747805283351,1.449,662.51,661.94,0.59631139]
[1747805283552,1.449,662.51,661.95,0.59631139]
[1747805283850,1.449,662.51,661.93,3.652]
[1747805284050,1.449,662.51,661.94,0.59640275]
[1747805284249,1.449,662.51,661.95,0.59640275]
[1747805284452,1.449,662.51,661.93,3.652]
[1747805284652,1.449,662.51,661.94,0.59653107]
[1747805284848,1.449,662.51,661.95,0.59653107]
[1747805285045,1.449,662.51,661.96,0.59653107]
[1747805285245,1.449,662.51,661.93,3.652]